fUSD/lending_fUSD_20260419
["ID","MTS","AMOUNT","RATE_DAILY","PERIOD"]
[420815868,1776562240467,-452.77341858,8.864e-05,2]
[420815869,1776562240479,-561.22993896,8.864e-05,2]
[420815870,1776562240862,-3678.63305652,8.864e-05,2]
[420815871,1776562240872,-1584.12,8.864e-05,2]
[420815872,1776562240881,-499.99,8.864e-05,2]
[420815873,1776562240892,-9999.99,8.864e-05,2]
[420815874,1776562240902,-4427.11,8.864e-05,2]
[420815875,1776562240911,-578.20924308,8.864e-05,2]
[420815876,1776562240921,-695.39793187,8.864e-05,2]
[420815877,1776562240931,-200.0,8.864e-05,2]
[420815878,1776562240940,-500.0,8.864e-05,2]
[420815879,1776562240950,-1377.42282659,8.864e-05,2]
[420815880,1776562240959,-419.67334524,8.864e-05,2]
[420815881,1776562240969,-174.61919141,8.864e-05,2]
[420815882,1776562240978,-247.67168918,8.864e-05,2]
[420815883,1776562240987,-500.0,8.919e-05,2]
[420815884,1776562240997,-2000.0,8.938e-05,2]
[420815885,1776562241006,-500.0,8.974e-05,2]
[420815886,1776562241016,-1680.0,8.987e-05,2]
[420815887,1776562241026,-255.0,8.987e-05,2]
[420815889,1776562241036,-300.0,8.988e-05,2]
[420815890,1776562241046,-300.0,8.988e-05,2]
[420815891,1776562241057,-300.0,8.988e-05,2]
[420815892,1776562241066,-4739.3415967,8.988e-05,2]
[420815893,1776562241077,-300.0,8.989e-05,2]
[420815894,1776562241087,-250.0,8.989e-05,2]
[420815895,1776562241097,-1608.12,9.01e-05,2]
[420815896,1776562241106,-17464.17990929,9.015e-05,2]
[420815897,1776562241116,-166.25,9.152e-05,2]
[420815898,1776562241126,-200.0,9.296e-05,2]
[420815899,1776562241136,-200.0,9.412e-05,2]
[420815900,1776562241146,-1428.38747117,9.412e-05,2]
[420815901,1776562241155,-181.08010149,9.412e-05,2]
[420815902,1776562241164,-500.0,9.573e-05,2]
[420815903,1776562241174,-3220.4,9.634e-05,2]
[420815904,1776562241184,-150.0,9.863e-05,2]
[420815905,1776562241193,-2351.0,9.886e-05,2]
[420815906,1776562241203,-433.0,9.886e-05,2]
[420815907,1776562241213,-162.11,9.911e-05,2]
[420815908,1776562241225,-301.45296488,9.96e-05,2]
[420815909,1776562241234,-1481.23780761,9.96e-05,2]
[420815910,1776562241244,-187.78006525,9.96e-05,2]
[420815911,1776562241254,-409.232258,9.964e-05,2]
[420815912,1776562241263,-160.07484764,9.988e-05,2]
[420815913,1776562241273,-152.85049781,9.999e-05,2]
[420815914,1776562241283,-500.0,9.999e-05,2]
[420815915,1776562241292,-454.44187331,9.999e-05,2]
[420815916,1776562241302,-500.0,9.999e-05,2]
[420815917,1776562241313,-500.0,9.999e-05,2]
[420815918,1776562241322,-500.0,9.999e-05,2]
[420815919,1776562241332,-500.0,9.999e-05,2]
[420815920,1776562241341,-500.0,9.999e-05,2]
[420815921,1776562241351,-500.0,9.999e-05,2]
[420815922,1776562241361,-390.61129984,9.999e-05,2]
[420815923,1776562241371,-500.0,9.999e-05,2]
[420815924,1776562241380,-500.0,9.999e-05,2]
[420815925,1776562241389,-500.0,9.999e-05,2]
[420815926,1776562241399,-500.0,9.999e-05,2]
[420815927,1776562241408,-500.0,9.999e-05,2]
[420815928,1776562241418,-290.0823843,9.999e-05,2]
[420815929,1776562241427,-500.0,0.0001,2]
[420815930,1776562241436,-151.0,0.0001,2]
[420815931,1776562241446,-500.0,0.0001,2]
[420815932,1776562241456,-151.0,0.0001,2]
[420815933,1776562241466,-500.0,0.0001,2]
[420815934,1776562241475,-151.0,0.0001,2]
[420815935,1776562241484,-340.49835767,0.0001,2]
[420815936,1776562241493,-151.0,0.0001,2]
[420815937,1776562241503,-330.76591498,0.0001,2]
[420815938,1776562241512,-151.0,0.0001,2]
[420815939,1776562241521,-151.0,0.0001,2]
[420815940,1776562241531,-151.0,0.0001,2]
[420815941,1776562241542,-151.0,0.0001,2]
[420815942,1776562241552,-151.0,0.0001,2]
[420815943,1776562241561,-151.0,0.0001,2]
[420815944,1776562241570,-151.0,0.0001,2]
[420815945,1776562241581,-151.0,0.0001,2]
[420815946,1776562241591,-772.09299294,0.0001,2]
[420815947,1776562241600,-152.94347824,0.0001,2]
[420815948,1776562241610,-150.0,0.00010189,2]
[420815949,1776562241620,-1265.0,0.00010189,2]
[420815950,1776562241629,-926.0,0.00010189,2]
[420815951,1776562241639,-1219.0,0.00010189,2]
[420815952,1776562241648,-623.0,0.00010189,2]
[420815953,1776562241657,-3529.0,0.00010189,2]
[420815954,1776562241667,-500.0,0.00010192,2]
[420815955,1776562241676,-359.69085159,0.00010242,2]
[420815956,1776562241686,-589.51456451,0.00010379,2]
[420815957,1776562241696,-19373.37207645,0.00010379,2]
[420815958,1776562241705,-152.0,0.00010381,5]
[420815959,1776562241714,-678.4364881,0.0001042,2]
[420815960,1776562241723,-176.0,0.00010492,2]
[420815961,1776562241733,-1536.04360649,0.00010508,2]
[420815962,1776562241742,-194.72792766,0.00010508,2]
[420815963,1776562241752,-771.56807159,0.00010552,2]
[420815964,1776562241761,-2000.0,0.0001059,2]
[420815965,1776562241770,-2000.0,0.0001059,2]
[420815966,1776562241780,-17282.8293,0.000106,2]
[420815967,1776562241789,-1000.0,0.000106,2]
[420815968,1776562241798,-5000.0,0.000106,2]
[420815969,1776562241808,-250.0,0.00010603,2]
[420815970,1776562241817,-250.0,0.00010603,2]
[420815971,1776562241827,-250.0,0.00010603,2]
[420815972,1776562241837,-250.0,0.00010603,2]
[420815973,1776562241847,-250.0,0.00010603,2]
[420815974,1776562241856,-2000.0,0.0001061,2]
[420815975,1776562241866,-11903.622394,0.00010632,2]
[420815976,1776562241876,-44848.2324132,0.00010632,2]
[420815977,1776562241885,-1997.3218409,0.00010632,2]
[420815978,1776562241895,-136531.614073,0.00010632,2]
[420815979,1776562241904,-484.1030137,0.00010632,2]
[420815980,1776562241914,-2000.0,0.0001064,2]
[420815981,1776562241923,-227.64920992,0.00010673,2]
[420815982,1776562241933,-151.0,0.00010682,2]
[420815983,1776562241942,-161.0,0.0001069,2]
[420815984,1776562241951,-161.0,0.0001069,2]
[420815985,1776562241961,-161.0,0.0001069,2]
[420815986,1776562241970,-344.0,0.000107,5]
[420815987,1776562241980,-274359.77186502,0.000107,2]
[420815988,1776562241990,-151.0,0.000107,2]
[420815989,1776562241999,-205.26197653,0.000107,2]
[420815990,1776562242008,-151.0,0.000107,2]
[420815991,1776562242018,-206.740576,0.000107,2]
[420815992,1776562242028,-206.740576,0.000107,2]
[420815993,1776562242039,-206.740576,0.000107,2]
[420815994,1776562242048,-206.740576,0.000107,2]
[420815995,1776562242058,-2000.0,0.000107,2]
[420815996,1776562242068,-2000.0,0.000107,2]
[420815997,1776562242077,-1600.0,0.00010704,2]
[420815998,1776562242087,-151.0,0.0001076,5]
[420815999,1776562242097,-4900.0,0.000108,3]
[420816000,1776562242107,-3292.0,0.00010874,2]
[420816001,1776562242117,-736.0,0.00010874,2]
[420816002,1776562242126,-1432.97484947,0.00010889,2]
[420816003,1776562242136,-9900.0,0.000109,3]
[420816004,1776562242146,-500.0,0.00010958,2]
[420816005,1776562242156,-500.0,0.00010958,3]
[420816006,1776562242166,-500.0,0.00010958,2]
[420816007,1776562242176,-500.0,0.00010958,3]
[420816008,1776562242185,-500.0,0.00010958,4]
[420816009,1776562242195,-500.0,0.00010958,2]
[420816010,1776562242204,-500.0,0.00010958,3]
[420816011,1776562242214,-500.0,0.00010958,4]
[420816012,1776562242223,-200.0,0.00010959,2]
[420816013,1776562242233,-200.0,0.00010959,2]
[420816014,1776562242242,-200.0,0.00010959,2]
[420816015,1776562242252,-500.0,0.00010959,2]
[420816016,1776562242262,-800.0,0.00010959,2]
[420816017,1776562242272,-1053.19,0.00010959,2]
[420816018,1776562242283,-3240.0,0.00010959,2]
[420816019,1776562242293,-151.0,0.00010959,2]
[420816020,1776562242302,-151.0,0.00010959,2]
[420816021,1776562242312,-151.0,0.00010959,2]
[420816022,1776562242321,-151.0,0.00010959,2]
[420816023,1776562242331,-151.0,0.00010959,2]
[420816024,1776562242340,-151.0,0.00010959,2]
[420816025,1776562242349,-151.0,0.00010959,2]
[420816026,1776562242359,-150.0,0.00010959,2]
[420816027,1776562242369,-150.0,0.00010989,2]
[420816028,1776562242378,-150.0,0.00010989,2]
[420816029,1776562242388,-2000.0,0.00010989,2]
[420816030,1776562242398,-2000.0,0.00010989,2]
[420816031,1776562242407,-958.01,0.00010989,2]
[420816032,1776562242417,-2000.0,0.00010989,2]
[420816033,1776562242426,-1193.58,0.00010989,2]
[420816034,1776562242435,-2000.0,0.00010989,2]
[420816035,1776562242445,-552.86,0.00010989,2]
[420816036,1776562242455,-785.76,0.00010989,2]
[420816037,1776562242465,-724.84,0.00010989,2]
[420816038,1776562242475,-2000.0,0.00010989,2]
[420816039,1776562242484,-1160.75,0.00010989,2]
[420816040,1776562242497,-646.04,0.00010989,2]
[420816041,1776562242507,-268.84,0.00010989,2]
[420816042,1776562242517,-1035.1,0.00010989,2]
[420816043,1776562242527,-2000.0,0.00010989,2]
[420816044,1776562242536,-1642.0,0.00010989,2]
[420816045,1776562242547,-1150.38,0.00010989,2]
[420816046,1776562242557,-1137.78,0.00010989,2]
[420816047,1776562242566,-2000.0,0.00010989,2]
[420816048,1776562242576,-1743.41,0.00010989,2]
[420816049,1776562242586,-247.8,0.00010989,2]
[420816050,1776562242595,-216.15,0.00010989,2]
[420816051,1776562242605,-150.0,0.00010989,2]
[420816052,1776562242616,-1938.34,0.00010989,2]
[420816053,1776562242626,-150.0,0.00010989,2]
[420816054,1776562242635,-1898.88,0.00010989,2]
[420816055,1776562242646,-754.73,0.00010989,2]
[420816056,1776562242656,-571.81,0.00010989,2]
[420816057,1776562242665,-1593.36,0.00010989,2]
[420816058,1776562242675,-656.5,0.00010989,2]
[420816059,1776562242685,-1550.58,0.00010989,2]
[420816060,1776562242695,-1592.87721993,0.00011056,2]
[420816061,1776562242705,-201.93286099,0.00011056,2]
[420816062,1776562242714,-300.0,0.00011086,2]
[420816063,1776562242724,-300.0,0.00011086,2]
[420816064,1776562242734,-300.0,0.00011086,2]
[420816065,1776562242743,-333.0,0.00011086,5]
[420816066,1776562242753,-151.0,0.00011087,2]
[420816067,1776562242762,-151.0,0.00011087,2]
[420816068,1776562242771,-196.340584,0.00011087,2]
[420816069,1776562242780,-300.0,0.00011098,2]
[420816070,1776562242790,-300.0,0.00011098,2]
[420816071,1776562242800,-300.0,0.00011098,2]
[420816072,1776562242810,-42443.51643005,0.00011099,2]
[420816073,1776562242820,-42443.51643004,0.00011099,2]
[420816074,1776562242829,-727.53531435,0.00011099,2]
[420816075,1776562242839,-727.53531432,0.00011099,2]
[420816076,1776562242849,-151.0,0.00011099,2]
[420816077,1776562242858,-151.0,0.00011099,2]
[420816078,1776562242868,-151.0,0.00011099,2]
[420816079,1776562242877,-151.0,0.00011099,2]
[420816080,1776562242887,-151.0,0.00011099,2]
[420816081,1776562242897,-206.740576,0.00011099,2]
[420816082,1776562242906,-206.740576,0.00011099,2]
[420816083,1776562242916,-206.740576,0.00011099,2]
[420816084,1776562242925,-206.740576,0.00011099,2]
[420816085,1776562242934,-500.0,0.00011172,2]
[420816086,1776562242944,-500.0,0.00011172,3]
[420816087,1776562242953,-2000.0,0.0001122,2]
[420816088,1776562242963,-469.53,0.0001122,2]
[420816089,1776562242972,-449.08,0.0001122,2]
[420816090,1776562242982,-1894.96,0.0001122,2]
[420816091,1776562242999,-287.03,0.0001122,2]
[420816092,1776562243012,-506.57,0.0001122,2]
[420816093,1776562243022,-1699.05,0.0001122,2]
[420816094,1776562243032,-271.48,0.0001122,2]
[420816095,1776562243041,-615.97,0.0001122,2]
[420816096,1776562243051,-1289.32,0.0001122,2]
[420816097,1776562243060,-1301.99,0.0001122,2]
[420816098,1776562243070,-892.56,0.0001122,2]
[420816099,1776562243079,-905.16,0.0001122,2]
[420816100,1776562243090,-150.0,0.0001122,2]
[420816101,1776562243099,-1099.62,0.0001122,2]
[420816102,1776562243109,-831.58,0.0001122,2]
[420816103,1776562243119,-500.74,0.0001122,2]
[420816104,1776562243128,-397.06,0.0001122,2]
[420816105,1776562243138,-719.73,0.0001122,2]
[420816106,1776562243147,-318.88,0.0001122,2]
[420816108,1776562243157,-836.67,0.0001122,2]
[420816109,1776562243166,-2000.0,0.00011301,2]
[420816110,1776562243175,-300.0,0.00011396,2]
[420816111,1776562243185,-300.0,0.00011396,2]
[420816112,1776562243195,-5000.0,0.00011466,2]
[420816113,1776562243204,-150.0,0.00011506,30]
[420816114,1776562243214,-159.48,0.00011507,2]
[420816115,1776562243224,-187.021344,0.00011536,2]
[420816116,1776562243233,-599.60298507,0.00011603,2]
[420816117,1776562243242,-721.12765535,0.00011603,2]
[420816118,1776562243253,-1651.81367706,0.00011604,2]
[420816119,1776562243263,-209.40437684,0.00011604,2]
[420816120,1776562243273,-1600.0,0.00011677,2]
[420816121,1776562243283,-670.45,0.00011736,2]
[420816122,1776562243292,-1065.91,0.00011736,2]
[420816123,1776562243302,-253.82201699,0.0001176,5]
[420816124,1776562243312,-168.53,0.00011918,2]
[420816125,1776562243321,-689.0,0.00011961,2]
[420816126,1776562243331,-4108.0,0.00011962,2]
[420816127,1776562243341,-151.0,0.00011973,2]
[420816128,1776562243351,-151.0,0.00011973,2]
[420816129,1776562243361,-151.0,0.00011973,2]
[420816130,1776562243371,-151.0,0.00011973,2]
[420816131,1776562243380,-151.0,0.00011973,2]
[420816132,1776562243395,-151.0,0.00011973,2]
[420816133,1776562243405,-151.0,0.00011973,2]
[420816134,1776562243415,-196.142384,0.00011973,2]
[420816135,1776562243426,-299.63,0.00011983,2]
[420816136,1776562243436,-498.77,0.00011983,2]
[420816137,1776562243445,-30464.3209134,0.00012028,2]
[420816138,1776562243455,-500.0,0.00012063,2]
[420816139,1776562243465,-300.0,0.00012107,2]
[420816140,1776562243475,-300.0,0.00012107,2]
[420816141,1776562243484,-300.0,0.00012107,2]
[420816142,1776562243494,-151.0,0.00012108,2]
[420816143,1776562243503,-151.0,0.00012108,2]
[420816144,1776562243513,-1712.93078312,0.00012152,2]
[420816145,1776562243522,-217.15233878,0.00012152,2]
[420816146,1776562243532,-160.0,0.00012187,2]
[420816147,1776562243541,-168.54,0.00012195,2]
[420816148,1776562243551,-168.54,0.00012195,2]
[420816149,1776562243560,-200.0,0.000122,2]
[420816150,1776562243570,-150.0,0.00012208,30]
[420816151,1776562243580,-1911.47,0.00012233,2]
[420816152,1776562243589,-151.0,0.00012319,2]
[420816153,1776562243599,-151.0,0.00012319,2]
[420816154,1776562243609,-151.0,0.00012319,2]
[420816155,1776562243619,-151.0,0.00012319,2]
[420816156,1776562243628,-151.0,0.00012319,2]
[420816157,1776562243638,-800.0,0.00012329,12]
[420816158,1776562243648,-2000.0,0.00012329,2]
[420816159,1776562243658,-206.740576,0.00012329,2]
[420816160,1776562243668,-206.740576,0.00012329,2]
[420816161,1776562243678,-206.740576,0.00012329,2]
[420816162,1776562243687,-206.740576,0.00012329,2]
[420816163,1776562243697,-6797.5088042,0.00012339,2]
[420816164,1776562243707,-10006.9932807,0.00012532,2]
[420816165,1776562243716,-750.1,0.00012615,2]
[420816166,1776562243725,-272.20464977,0.000127,2]
[420816167,1776562243736,-727.53531432,0.0001281,2]
[420816168,1776562243745,-42443.51643004,0.00012839,2]
[420816169,1776562243755,-150.0,0.0001291,30]
[420816170,1776562243764,-2232.8620133,0.00012956,2]
[420816171,1776562243774,-2656.0571711,0.0001301,2]
[420816172,1776562243784,-150.0,0.00013062,2]
[420816173,1776562243799,-150.0,0.00013062,2]
[420816174,1776562243808,-150.0,0.00013062,2]
[420816175,1776562243818,-150.0,0.00013062,2]
[420816176,1776562243828,-150.0,0.00013062,2]
[420816177,1776562243838,-150.0,0.00013062,2]
[420816178,1776562243848,-150.0,0.00013062,2]
[420816179,1776562243858,-1265.0,0.00013189,2]
[420816180,1776562243868,-926.0,0.00013189,2]
[420816181,1776562243878,-1219.0,0.00013189,2]
[420816182,1776562243889,-623.0,0.00013189,2]
[420816183,1776562243899,-3529.0,0.00013189,2]
[420816184,1776562243909,-441.36,0.00013292,2]
[420816185,1776562243919,-441.33,0.00013292,2]
[420816186,1776562243929,-441.33,0.00013292,2]
[420816187,1776562243940,-200.0,0.000133,2]
[420816188,1776562243950,-592.6464619,0.0001354,2]
[420816189,1776562243959,-1127.42243443,0.00013598,2]
[420816190,1776562244489,-311.86423804,0.000136,2]
[420816191,1776562244549,-11016.19402714,0.000136,2]
[420816192,1776562244558,-150.0,0.00013612,30]
[420816193,1776562244568,-500.0,0.00013698,2]
[420816194,1776562244578,-500.0,0.00013698,2]
[420816195,1776562244590,-500.0,0.00013698,2]
[420816196,1776562244600,-500.0,0.00013698,2]
[420816197,1776562244610,-500.0,0.00013698,2]
[420816198,1776562244620,-500.0,0.00013698,2]
[420816199,1776562244630,-500.0,0.00013698,2]
[420816200,1776562244640,-500.0,0.00013698,2]
[420816201,1776562244650,-500.0,0.00013698,2]
[420816202,1776562244661,-500.0,0.00013698,2]
[420816203,1776562244671,-500.0,0.00013698,2]
[420816204,1776562244682,-500.0,0.00013698,2]
[420816205,1776562244692,-500.0,0.00013698,2]
[420816206,1776562244702,-500.0,0.00013698,2]
[420816207,1776562244713,-500.0,0.00013698,2]
[420816208,1776562244722,-277.99131892,0.00013698,2]
[420816209,1776562244732,-500.0,0.00013698,2]
[420816210,1776562244742,-500.0,0.00013698,2]
[420816211,1776562244752,-500.0,0.00013698,2]
[420816212,1776562244761,-500.0,0.00013698,2]
[420816213,1776562244771,-500.0,0.00013698,2]
[420816214,1776562244780,-500.0,0.00013698,2]
[420816215,1776562244791,-500.0,0.00013698,2]
[420816216,1776562244801,-500.0,0.00013698,2]
[420816217,1776562244811,-500.0,0.00013698,2]
[420816219,1776562244821,-500.0,0.00013698,2]
[420816220,1776562244830,-500.0,0.00013698,2]
[420816221,1776562244842,-500.0,0.00013698,2]
[420816222,1776562244852,-276.72496692,0.00013698,2]
[420816223,1776562244862,-508.00277043,0.00013698,2]
[420816224,1776562244872,-200.0,0.00013699,2]
[420816225,1776562244882,-166.66,0.00013699,2]
[420816226,1776562244891,-151.0,0.00013699,2]
[420816227,1776562244901,-151.0,0.00013699,2]
[420816228,1776562244910,-408.25,0.00013699,22]
[420816229,1776562244919,-300.0,0.00013699,2]
[420816230,1776562244928,-300.0,0.00013699,2]
[420816231,1776562244938,-300.0,0.00013699,2]
[420816232,1776562244948,-300.0,0.00013699,2]
[420816233,1776562244957,-300.0,0.00013699,2]
[420816234,1776562244967,-382.0,0.00013699,2]
[420816235,1776562244976,-382.0,0.00013699,2]
[420816236,1776562244986,-376.0,0.00013699,2]
[420816237,1776562244995,-382.0,0.00013699,2]
[420816238,1776562245004,-382.0,0.00013699,2]
[420816239,1776562245014,-382.0,0.00013699,2]
[420816240,1776562245024,-382.0,0.00013699,2]
[420816241,1776562245033,-179.99121928,0.00013699,2]
[420816242,1776562245042,-500.0,0.00013699,5]
[420816243,1776562245051,-500.0,0.00013699,6]
[420816244,1776562245061,-500.0,0.00013699,2]
[420816245,1776562245070,-620.63567074,0.00013699,2]
[420816246,1776562245080,-500.0,0.00013699,2]
[420816247,1776562245090,-500.0,0.00013699,2]
[420816248,1776562245100,-500.0,0.00013699,2]
[420816249,1776562245109,-500.0,0.00013699,2]
[420816250,1776562245119,-150.0,0.00013699,2]
[420816251,1776562245128,-500.0,0.00013699,2]
[420816252,1776562245138,-206.44502119,0.00013699,2]
[420816253,1776562245147,-355425.59,0.000137,2]
[420816254,1776562245157,-516.4,0.000137,2]
[420816255,1776562245167,-426.74,0.000137,2]
[420816256,1776562245176,-151.0,0.000137,2]
[420816257,1776562245187,-151.0,0.000137,2]
[420816258,1776562245196,-151.0,0.000137,2]
[420816259,1776562245206,-203.854485,0.000137,2]
[420816260,1776562245215,-206.740576,0.000137,2]
[420816261,1776562245225,-206.740576,0.000137,2]
[420816262,1776562245234,-206.740576,0.000137,2]
[420816263,1776562245244,-206.740576,0.000137,2]
[420816264,1776562245255,-151.0,0.000137,2]
[420816265,1776562245264,-151.0,0.000137,2]
[420816266,1776562245274,-151.0,0.000137,2]
[420816267,1776562245283,-151.0,0.000137,2]
[420816268,1776562245293,-151.0,0.000137,2]
[420816269,1776562245302,-166.66,0.00013836,2]
[420816270,1776562245311,-14900.0,0.000139,5]
[420816271,1776562245322,-166.66,0.00013973,2]
[420816272,1776562245332,-166.66,0.0001411,2]
[420816273,1776562245342,-166.66,0.00014247,2]
[420816274,1776562245351,-150.0,0.00014315,30]
[420816275,1776562245361,-621.78829552,0.00014342,2]
[420816276,1776562245371,-747.8093786,0.00014342,2]
[420816277,1776562245382,-166.66,0.00014384,2]
[420816278,1776562245391,-162.11,0.00014525,2]
[420816279,1776562245401,-727.53531432,0.00014851,2]
[420816280,1776562245412,-42443.51643004,0.00014876,2]
[420816281,1776562245421,-201.0,0.00015,25]
[420816282,1776562245431,-300.4298474,0.00015,2]
[420816283,1776562245442,-150.0,0.00015017,30]
[420816284,1776562245451,-3000.0,0.00015067,2]
[420816285,1776562245461,-499.952,0.00015085,2]
[420816286,1776562245470,-168.56,0.00015244,2]
[420816287,1776562245480,-426.74,0.000153,2]
[420816288,1776562245489,-160.0,0.00015476,2]
[420816289,1776562245499,-153.0,0.00015476,2]
[420816290,1776562245511,-2433.06,0.00015507,2]
[420816291,1776562245520,-600.0,0.00015615,2]
[420816292,1776562245531,-540.05,0.00015684,2]
[420816293,1776562245541,-516.4,0.000157,2]
[420816294,1776562245552,-500.0,0.00015728,2]
[420816295,1776562245563,-2000.0,0.0001589,2]
[420816296,1776562245572,-2433.06,0.00015895,2]
[420816297,1776562245582,-160.0,0.00016,3]
[420816298,1776562245592,-150.0,0.00016062,2]
[420816299,1776562245601,-150.0,0.00016062,2]
[420816300,1776562245610,-150.0,0.00016062,2]
[420816301,1776562245620,-150.0,0.00016062,2]
[420816302,1776562245630,-150.0,0.00016062,2]
[420816303,1776562245640,-3138.0,0.00016082,2]
[420816304,1776562245649,-500.0,0.00016099,7]
[420816305,1776562245659,-500.0,0.00016099,2]
[420816306,1776562245668,-264.20939292,0.00016099,2]
[420816307,1776562245678,-428.026492,0.00016099,2]
[420816308,1776562245687,-300.0,0.00016099,2]
[420816309,1776562245697,-500.0,0.00016099,2]
[420816310,1776562245706,-382.12172293,0.00016099,2]
[420816311,1776562245716,-300.0,0.00016099,2]
[420816312,1776562245725,-500.0,0.00016099,2]
[420816313,1776562245735,-355425.59,0.000161,2]
[420816314,1776562245744,-151.0,0.000161,2]
[420816315,1776562245754,-151.0,0.000161,2]
[420816316,1776562245764,-151.0,0.000161,2]
[420816317,1776562245774,-206.740576,0.000161,2]
[420816318,1776562245783,-206.740576,0.000161,2]
[420816319,1776562245792,-206.740576,0.000161,2]
[420816320,1776562245803,-206.740573,0.000161,2]
[420816321,1776562245812,-151.0,0.000161,2]
[420816322,1776562245822,-151.0,0.000161,2]
[420816323,1776562245832,-151.0,0.000161,2]
[420816324,1776562245842,-151.0,0.000161,2]
[420816325,1776562245851,-151.0,0.000161,2]
[420816326,1776562245860,-403.57679095,0.00016151,2]
[420816327,1776562245870,-1265.0,0.00016189,2]
[420816328,1776562245879,-926.0,0.00016189,2]
[420816329,1776562245889,-1219.0,0.00016189,2]
[420816330,1776562245898,-623.0,0.00016189,2]
[420816331,1776562245907,-3529.0,0.00016189,2]
[420816332,1776562245917,-1432.97484946,0.00016224,2]
[420816333,1776562245927,-2433.06,0.00016282,2]
[420816334,1776562245937,-174.0,0.0001629,2]
[420816335,1776562245946,-180.0,0.0001629,2]
[420816336,1776562245956,-426.0,0.0001629,2]
[420816337,1776562245966,-885.0,0.0001629,2]
[420816338,1776562245975,-286.0,0.0001629,2]
[420816339,1776562245985,-153.0,0.0001629,2]
[420816340,1776562245994,-500.0,0.00016395,2]
[420816341,1776562246004,-300.0,0.00016395,2]
[420816342,1776562246013,-300.0,0.00016395,2]
[420816343,1776562246023,-71538.39063,0.00016396,2]
[420816344,1776562246032,-2000.0,0.000164,2]
[420816345,1776562246042,-500.0,0.00016416,8]
[420816346,1776562246052,-3000.0,0.00016437,2]
[420816347,1776562246061,-240.0,0.00016438,2]
[420816348,1776562246070,-160.0,0.00016476,2]
[420816349,1776562246080,-153.0,0.00016476,2]
[420816350,1776562246090,-2433.06,0.0001667,2]
[420816351,1776562246100,-20931.96000436,0.00016765,2]
[420816352,1776562246109,-401.01018146,0.00016828,4]
[420816353,1776562246119,-727.53531432,0.00016893,2]
[420816354,1776562246128,-42443.51643004,0.00016913,2]
[420816355,1776562246138,-6991.66452843,0.00016914,2]
[420816356,1776562246147,-600.0,0.00016985,7]
[420816357,1776562246157,-2433.06,0.00017058,2]
[420816358,1776562246166,-644.79446246,0.00017081,2]
[420816359,1776562246175,-775.47832561,0.00017081,2]
[420816360,1776562246185,-426.74,0.000171,2]
[420816361,1776562246194,-246.0,0.0001714,2]
[420816362,1776562246203,-170.0,0.00017148,2]
[420816363,1776562246213,-516.4,0.000172,2]
[420816364,1776562246222,-174.0,0.0001729,2]
[420816365,1776562246231,-180.0,0.0001729,2]
[420816366,1776562246241,-426.0,0.0001729,2]
[420816367,1776562246251,-885.0,0.0001729,2]
[420816368,1776562246260,-286.0,0.0001729,2]
[420816369,1776562246269,-153.0,0.0001729,2]
[420816370,1776562246278,-151.0,0.00017336,2]